Cogmind - Beta 11 @@@ ROGUE MODE // 2022.03.22 @ 14:20:51 Player: Demise Result: Destroyed by S-27 Virus with Autogun Performance ------------- Evolutions (3) 1500 Regions Visited (14) 2800 Robots Destroyed (229) 1145 Value Destroyed (8296) 8296 Prototype IDs (53) 1060 Alien Tech Used (0) 0 Bonus (4416) 4416 TOTAL SCORE: 19217 Bonus ------- High Alert Combat Kills 1978 Follower Combat Kills 594 Entered Garrisons 600 Used RIF Installer 1000 Aligned with FarCom 300 Friendly Fire -56 Cogmind --------- Core Integrity 0/700 Matter 195/300 Energy 15/150 System Corruption 0% Temperature Cool (0) Movement Hovering (142) Ox1 Location -7/Lower Caves Parts ------- > --- POWER (1) -------- Micro Nuclear Core > --- PROPULSION (3) --- Combat Antigrav System Combat Antigrav System Combat Antigrav System > --- UTILITY (7) ------ High-capacity Storage Unit Improved Sensor Array Improved Signal Interpreter Makeshift Salvage Targeting Computer Hacking Suite Relay Coupler [NC] (28) > --- WEAPON (2) ------- Flak Gun Proton Missile Launcher > --- INVENTORY (20) --- Gravity Neutralizer Modified TNC Experimental Core Analyzer Advanced Weapon Cycler Advanced Component Analysis Suite System Purifier Long-range Tractor Beam AS-neutralizer No. 17b AWS/EX-DEC Heavy Phase Cannon Heavy Phase Cannon Hypervelocity Gauss Rifle Remote Datajack Longsword +1 Peak State ------------ > --- POWER ------------ Micro Nuclear Core > --- PROPULSION ------- Advanced Treads Heavy Siege Treads > --- UTILITY ---------- Improved Heat Sink High-capacity Storage Unit Improved Signal Interpreter Layered Light Armor Plating Hacking Suite Relay Coupler [NC] System Purifier > --- WEAPON ----------- Heavy Phase Cannon Longsword +1 > --- INVENTORY -------- Heavy Siege Treads Combat Antigrav System Combat Antigrav System Combat Antigrav System Gravity Neutralizer Improved Sensor Array Modified TNC Makeshift Salvage Targeting Computer Experimental Core Analyzer Advanced Weapon Cycler Advanced Component Analysis Suite Long-range Tractor Beam AS-neutralizer No. 17b AWS/EX-DEC Heavy Phase Cannon Hypervelocity Gauss Rifle Mini Grenade Launcher Remote Datajack [Rating: 71] Favorites ----------- Power Light Nuclear Core Engine Makeshift Power Source Power Core Light Nuclear Core Propulsion Armored Treads Treads Armored Treads Leg VSS Leg Hover Unit Combat Antigrav System Flight Unit Improved VTOL Module Utility High-capacity Storage Unit Device Microactuators Storage High-capacity Storage Unit Processor Improved Signal Interpreter Hackware Hacking Suite Protection Hardened Medium Armor Plating Weapon Longsword +1 Energy Gun AWS/EX-DEC Energy Cannon Heavy Phase Cannon Ballistic Gun Improved Assault Rifle Launcher Advanced EMP Blaster Special Weapon Remote Datajack Slashing Weapon Longsword +1 Special Melee Weapon Datajack Build | -11 -10 -10 -9 -9 -9 -8 -8 -8 -8 -8 -7 -7 -7 -7 ------- Run | Scr Mat Min Mat Min Exi Min Mat Gar Mat Gar Fac Gar Fac Low Slots Evolved 6 | . . . 2 . . . 2 . . . 2 . . . Power . | . . . . . . . . . . . . . . . Propulsion 1 | . . . . . . . . . . . 1 . . . Utility 5 | . . . 2 . . . 2 . . . 1 . . . Weapon . | . . . . . . . . . . . . . . . Parts Attached 194 | 6 10 2 8 3 23 . 26 22 12 6 46 6 22 2 Power 23 | 1 1 1 1 . 1 . 2 3 3 1 6 1 2 . Engine 5 | 1 . . . . 1 . 1 . 1 . 1 . . . Core 18 | . 1 1 1 . . . 1 3 2 1 5 1 2 . Reactor . | . . . . . . . . . . . . . . . Propulsion 37 | 2 2 . 2 . 2 . 5 3 2 . 13 1 5 . Treads 30 | 2 2 . 2 . 2 . 4 3 2 . 11 1 1 . Leg 1 | . . . . . . . . . . . 1 . . . Wheel . | . . . . . . . . . . . . . . . Hover 3 | . . . . . . . . . . . . . 3 . Flight 3 | . . . . . . . 1 . . . 1 . 1 . Utility 71 | 1 2 1 1 1 8 . 17 9 3 2 15 1 9 1 Device 24 | 1 . . 1 . 2 . 7 3 2 . 6 . 1 1 Storage 9 | . 2 . . 1 4 . 2 . . . . . . . Processor 7 | . . 1 . . . . 2 1 . 1 1 . 1 . Hackware 11 | . . . . . . . 3 2 . . 5 . 1 . Protection 20 | . . . . . 2 . 3 3 1 1 3 1 6 . Artifact . | . . . . . . . . . . . . . . . Weapon 63 | 2 5 . 4 2 12 . 2 7 4 3 12 3 6 1 Energy Gun 3 | . . . . . 1 . . . 2 . . . . . Energy Cannon 1 | . . . . . . . . . . . 1 . . . Ballistic Gun 30 | 2 4 . 4 1 7 . . 3 2 1 1 1 4 . Ballistic Cannon . | . . . . . . . . . . . . . . . Launcher 16 | . 1 . . 1 2 . 1 3 . 1 4 1 1 1 Special Weapon 2 | . . . . . . . . . . . 2 . . . Impact Weapon . | . . . . . . . . . . . . . . . Slashing Weapon 10 | . . . . . 1 . 1 1 . 1 4 1 1 . Piercing Weapon . | . . . . . . . . . . . . . . . Special Melee Weapon 1 | . . . . . 1 . . . . . . . . . Unidentified Prototypes 8 | . . . 2 . . . 2 . 2 . 1 . 1 . Parts Lost 30 | . . . . 3 4 . 1 2 1 3 6 4 5 1 Power 6 | . . . . 1 . . . . 1 1 1 1 1 . Propulsion 5 | . . . . . 2 . . . . . . 2 1 . Utility 13 | . . . . 1 . . 1 1 . 1 4 1 3 1 Weapon 6 | . . . . 1 2 . . 1 . 1 1 . . . Highest Loss Streak 4 | . . . . 3 4 . 1 1 1 2 2 4 3 1 To Critical Strikes 4 | . . . . . 4 . . . . . . . . . Average Slot Usage (%) 93 | . 99 100 86 87 84 88 94 99 99 91 97 83 88 98 Engine 2 | . 7 . . . 2 11 4 . 2 . 1 . . . Core 5 | . 6 14 10 10 . . 4 8 6 5 5 6 6 7 Treads 19 | . 28 28 22 22 21 22 18 18 18 18 22 8 11 . Device 9 | . 14 2 11 10 1 11 15 13 14 9 11 7 1 7 Storage 9 | . 13 14 11 11 10 11 9 9 9 9 7 7 7 7 Processor 11 | . . 11 11 11 11 11 9 12 9 17 12 15 15 15 Hackware 6 | . . . . . . . 10 4 12 7 12 15 15 15 Protection 9 | . . . . . 15 11 9 14 9 9 7 5 11 5 Ballistic Gun 10 | . 27 28 21 21 17 . . 8 8 1 4 3 7 7 Launcher 1 | . . . . . . . 5 4 . 4 . 1 . 1 Slashing Weapon 4 | . . . . . . . 7 5 9 7 6 6 6 5 Naked Turns . | . . . . . . . . . . . . . . . Heaviest Build 104 | 9 21 19 35 45 63 63 104 68 62 62 68 64 63 57 Greatest Support 92 | 40 40 40 40 40 40 40 50 48 40 40 92 92 90 48 Greatest Overweight (x) 2 | . . . . 1 1 1 2 1 1 1 1 . 2 1 Average Overweight (x) . | . . . . . . 1 1 1 1 1 . . . 1 Largest Inventory Capacity 25 | 5 10 10 10 15 20 20 25 20 20 20 20 20 20 20 Average Capacity 17 | 5 8 10 10 12 15 20 20 20 20 20 20 20 20 20 Most Carried 20 | 3 10 10 10 15 20 20 20 20 20 20 20 20 20 15 Average Carried 17 | 2 7 9 9 11 13 20 19 19 19 19 19 19 19 15 Final Capacity 20 | 5 10 10 10 15 20 20 20 20 20 20 20 20 20 20 Final Carried 20 | 3 10 10 10 15 20 20 20 20 20 20 20 20 16 15 Class Distribution -------------------- 64% | Mutant 28% | Scavenger-Mutant 5% | Hacker-Mutant Dominant Class ---------------- Mutant | -10/Materials Scavenger-Mutant | -10/Mines Mutant | -9/Materials Mutant | -9/Mines Mutant | -9/Exiles Scavenger-Mutant | -8/Mines Scavenger-Mutant | -8/Materials Mutant | -8/Garrison Mutant | -8/Materials Mutant | -8/Garrison Mutant | -7/Factory Scavenger-Mutant | -7/Garrison Scavenger-Mutant | -7/Factory Mutant | -7/Lower Caves Resources | -11 -10 -10 -9 -9 -9 -8 -8 -8 -8 -8 -7 -7 -7 -7 ----------- Run | Scr Mat Min Mat Min Exi Min Mat Gar Mat Gar Fac Gar Fac Low Matter Collected 4232 | 257 577 124 206 146 648 225 270 469 148 48 784 170 160 . Remotely 105 | . . . . . . . . . . . 105 . . . Salvage Created 9017 | 74 636 218 339 138 485 306 1645 961 925 308 1902 169 824 87 Parts 519 | 5 40 19 25 9 65 14 82 48 49 22 77 12 45 7 Haulers Intercepted 11 | . 2 . 2 . . . 4 . 2 . . . 1 . Recyclers Shooed 2 | . . . 1 . . . . . . . . . 1 . Parts Field Recycled . | . . . . . . . . . . . . . . . Retrieved Matter . | . . . . . . . . . . . . . . . Parts Self-Destructed . | . . . . . . . . . . . . . . . Prevented . | . . . . . . . . . . . . . . . Kills | -11 -10 -10 -9 -9 -9 -8 -8 -8 -8 -8 -7 -7 -7 -7 ------- Run | Scr Mat Min Mat Min Exi Min Mat Gar Mat Gar Fac Gar Fac Low Combat Hostiles Destroyed 186 | . 11 7 6 5 8 10 23 22 16 14 37 9 15 3 Melee 80 | . . . . . . . 15 8 15 5 22 1 14 . Guns 51 | . 11 7 6 2 1 9 7 5 1 . 2 . . . Cannons 3 | . . . . . . . . . . . 3 . . . AOE 51 | . . . . 3 7 . 1 9 . 9 10 8 1 3 Classes Destroyed 20 | 2 6 . 1 . 3 1 2 1 . . 2 2 . . Worker 4 | . . . . . . . 1 . . . 2 . 1 . Builder 2 | . 2 . . . . . . . . . . . . . Tunneler 3 | 1 . . . 1 . . 1 . . . . . . . Hauler 11 | . 2 . 2 . . . 4 . 2 . . . 1 . Recycler 8 | 1 1 . . . . . 2 . 1 . 1 . 2 . Mechanic 4 | . . . . . . . . . . . 4 . . . Operator 4 | . 1 . . . . . 2 . . . 1 . . . Turret 1 | . . . . . 1 . . . . . . . . . Watcher 5 | . 1 . . . . . 2 . 2 . . . . . Swarmer 45 | . 2 3 . 3 . 6 3 6 4 7 . 3 5 3 Cutter 2 | . . . . . . . . . . . . 2 . . Grunt 87 | . 9 4 4 2 . 3 12 8 6 5 28 2 4 . Brawler 4 | . . . . . . . . 2 1 1 . . . . Duelist 8 | . . . . . . . 1 3 1 . 3 . . . Sentry 21 | . . . 2 . . . 6 3 3 1 3 1 2 . Demolisher 1 | . . . . . . . . . . . . 1 . . Hunter 5 | . . . . . . 1 1 . 1 . 1 . 1 . Programmer 5 | . . . . . . . . . . . 2 . 3 . Zionite 8 | . . . . . 8 . . . . . . . . . Assembled 7 | . . . . . 7 . . . . . . . . . Best Kill Streak 14 | 1 3 3 2 4 7 6 5 6 4 4 14 9 3 3 Combat Bots Only 12 | . 2 3 2 3 7 6 5 6 4 4 12 9 3 3 Max Kills in Single Turn 3 | 1 1 2 1 2 2 1 1 3 1 3 3 2 3 3 Gunslinging . | . . . . . . . . . . . . . . . Exploded 3 | . . . . 2 2 . 1 3 . 3 3 2 1 3 Melee 1 | . . . . . . . 1 1 1 1 1 1 1 . Uniques/NPCs Destroyed 4 | . . . . . 4 . . . . . . . . . 8R-AWN (-9/Exiles) EX-BIN (-9/Exiles) EX-HEX (-9/Exiles) EX-DEC (-9/Exiles) Combat | -11 -10 -10 -9 -9 -9 -8 -8 -8 -8 -8 -7 -7 -7 -7 -------- Run | Scr Mat Min Mat Min Exi Min Mat Gar Mat Gar Fac Gar Fac Low Damage Taken 10436 | . 363 308 417 724 1353 68 958 860 893 352 1964 1002 1029 145 Core 1507 | . 42 89 55 66 168 . 115 126 71 59 341 222 88 65 Absorbed by Shields . | . . . . . . . . . . . . . . . Regen/Repaired (Parts) 163 | . . . 134 . . . 29 . . . . . . . Core Remaining (%) 51 | 100 . 47 . . . 27 . . . 32 . . . . Volleys Fired 342 | 6 44 26 28 11 97 . 2 50 7 14 35 12 8 2 Largest 2 | 2 2 2 2 2 2 . 1 2 1 1 2 1 1 1 Hottest 120 | 40 40 40 46 46 46 . 36 45 25 33 120 30 39 39 Shots Fired 612 | 12 86 52 56 20 176 22 18 85 7 14 42 12 8 2 Gun 520 | 12 84 52 56 18 161 22 16 72 7 5 11 . 4 . Cannon 12 | . . . . . . . . . . . 12 . . . Launcher 75 | . 2 . . 2 15 . 2 13 . 9 14 12 4 2 Special 5 | . . . . . . . . . . . 5 . . . Kinetic 482 | 12 84 52 56 18 161 . . 72 7 5 11 . 4 . Thermal 12 | . . . . . . . . . . . 12 . . . Explosive 54 | . 2 . . 2 15 . . . . 9 14 12 . . Electromagnetic 59 | . . . . . . 22 18 13 . . . . 4 2 Robot Hit Streak 25 | 3 17 7 17 13 25 11 11 9 3 4 12 10 2 1 Robot Miss Streak 6 | 2 1 3 2 3 3 4 3 2 1 4 6 6 5 . Penetration Max . | . . . . . . . . . . . . . . . Secondary Targets 3 | . 1 1 1 . . . . . . . . . . . Max Gunslinging Chain 1 | . 1 1 1 . . . . . . . . . . . Autonomous 38 | . . . . . . 22 16 . . . . . . . Shots Hit Robots 680 | 7 57 36 38 15 137 20 79 76 52 13 110 7 32 1 Core Hits 381 | 4 32 15 17 7 51 13 38 38 19 17 83 19 24 4 Critical Kills 1 | . . 1 . . . . . . . . . . . . Critical Parts Destroyed 2 | . . . 1 . . . . 1 . . . . . . Critical Strikes 29 | . . 1 1 . 1 2 7 1 7 . 6 . 3 . Destroy 3 | . . 1 1 . . . . 1 . . . . . . Corrupt 3 | . . . . . . 2 1 . . . . . . . Sever 23 | . . . . . 1 . 6 . 7 . 6 . 3 . Melee Attacks 384 | . . . . . 12 . 83 33 62 18 115 3 57 1 Impact . | . . . . . . . . . . . . . . . Slashing 381 | . . . . . 9 . 83 33 62 18 115 3 57 1 Piercing . | . . . . . . . . . . . . . . . Sneak Attacks 29 | . . . . . 3 . 10 4 5 . 5 . 2 . Combat Hostiles 5 | . . . . . . . 1 4 . . . . . . Follow-up Attacks . | . . . . . . . . . . . . . . . Damage Inflicted 24595 | 93 690 381 545 391 3449 524 3894 2266 2522 1290 6095 592 1735 128 Guns 5577 | 93 642 381 545 207 1905 524 344 664 69 . 168 . 35 . Cannons 358 | . . . . . . . . . . . 358 . . . Explosions 5361 | . 48 . . 184 891 . 60 735 . 705 1913 494 203 128 Melee 13295 | . . . . . 653 . 3489 864 2453 585 3656 98 1497 . Ramming 4 | . . . . . . . 1 3 . . . . . . Kinetic 4709 | 93 642 381 545 207 1905 . . 664 69 . 168 . 35 . Thermal 796 | . . . . . . . . 163 . . 531 . 102 . Explosive 4062 | . 48 . . 184 891 . . . . 705 1740 494 . . Electromagnetic 1729 | . . . . . . 524 404 572 . . . . 101 128 Impact . | . . . . . . . . . . . . . . . Slashing 13295 | . . . . . 653 . 3489 864 2453 585 3656 98 1497 . Piercing . | . . . . . . . . . . . . . . . Highest Corruption 4 | . . . . . . . 1 4 . . 1 . 1 . Average Corruption 1 | . . . . . . . 1 3 . . 1 . 1 . Corruption Purged 7 | . . . . . . . 1 4 . . 1 . 1 . Corruption Blocked . | . . . . . . . . . . . . . . . Effects 17 | . . . . . . . 1 9 . . 7 . . . Message Errors 8 | . . . . . . . . 6 . . 2 . . . Matter Fused 2 | . . . . . . . . 1 . . 1 . . . Heat Flow Errors 3 | . . . . . . . 1 . . . 2 . . . Energy Discharges 2 | . . . . . . . . 1 . . 1 . . . Data Loss (minor) 1 | . . . . . . . . . . . 1 . . . Data Loss (major) 1 | . . . . . . . . 1 . . . . . . Overload Shots . | . . . . . . . . . . . . . . . Overflow Damage 1116 | . . . . 9 107 . 114 29 132 68 571 . 86 . Projectiles . | . . . . . . . . . . . . . . . Explosions 240 | . . . . 9 10 . . . . 48 173 . . . Melee 876 | . . . . . 97 . 114 29 132 20 398 . 86 . Knockbacks . | . . . . . . . . . . . . . . . Impact . | . . . . . . . . . . . . . . . Kinetic . | . . . . . . . . . . . . . . . Secondary . | . . . . . . . . . . . . . . . Self-Inflicted Damage 301 | . 23 . . . . . 34 70 . 26 45 68 29 6 Shots 17 | . 1 . . . . . 2 4 . 1 4 3 1 1 Rammed 2 | . . . . . . . 1 1 . . . . . . Targets Rammed 2 | . . . . . . . 1 1 . . . . . . Kicked . | . . . . . . . . . . . . . . . Crushed . | . . . . . . . . . . . . . . . Highest Temperature 270 | . 40 21 8 21 47 . 53 270 18 9 213 1 3 . Average Temperature 44 | . 10 6 3 9 28 . 15 71 7 4 72 1 3 . Received Heat Transfer 2979 | . 192 135 222 48 . 18 396 405 297 180 768 171 147 . Siege Activations . | . . . . . . . . . . . . . . . Robots Corrupted 1 | . . . . . . 1 . . . . . . . . Combat Hostiles 1 | . . . . . . 1 . . . . . . . . Parts Fried 12 | . . . . . . 6 1 3 . . . . 2 . Impact Corruptions . | . . . . . . . . . . . . . . . Robots Melted . | . . . . . . . . . . . . . . . Combat Hostiles . | . . . . . . . . . . . . . . . Parts Melted 1 | . . . . . . . . . . . 1 . . . Heat Transferred 783 | . . . . . . . . 200 . . 433 . 150 . Parts Sabotaged . | . . . . . . . . . . . . . . . Parts Stolen . | . . . . . . . . . . . . . . . Parts Stripped . | . . . . . . . . . . . . . . . Power Chain Reactions 7 | . . . . . . . . 6 . . . . 1 . Missiles Intercepted . | . . . . . . . . . . . . . . . Alert | -11 -10 -10 -9 -9 -9 -8 -8 -8 -8 -8 -7 -7 -7 -7 ------- Run | Scr Mat Min Mat Min Exi Min Mat Gar Mat Gar Fac Gar Fac Low Peak Influence 1812 | 10 277 193 291 187 . 285 492 1812 1111 1126 1361 1110 677 . Initial 952 | . 6 106 27 51 . . 111 234 883 683 590 952 582 . Average 648 | 4 171 74 145 100 . 58 307 1229 976 875 788 1070 473 . Maximum Alert Level 5 | . 1 . 1 . . 1 2 5 4 4 4 4 2 . Low Security (%) 20 | 100 49 100 73 100 . 76 9 . . . . . . . Level 1 16 | . 50 . 26 . . 23 68 7 . . . . 31 . Level 2 21 | . . . . . . . 21 11 . 19 46 . 68 . Level 3 22 | . . . . . . . . 8 86 72 44 32 . . Level 4 13 | . . . . . . . . 46 13 7 8 67 . . Level 5 4 | . . . . . . . . 25 . . . . . . High Security . | . . . . . . . . . . . . . . . Max Security . | . . . . . . . . . . . . . . . Squads Dispatched 42 | . 4 1 1 1 . . 5 . 3 . 18 . 9 . Investigation 20 | . 2 1 1 1 . . 3 . 1 . 6 . 5 . Extermination 8 | . . . . . . . . . . . 4 . 4 . Reinforcement 8 | . 2 . . . . . 2 . 1 . 3 . . . Assault 6 | . . . . . . . . . 1 . 5 . . . Garrison . | . . . . . . . . . . . . . . . Intercept . | . . . . . . . . . . . . . . . Searches Triggered . | . . . . . . . . . . . . . . . Construction Impeded 2 | . . . . . . . . . . . 2 . . . Haulers Reinforced . | . . . . . . . . . . . . . . . Active Scanning Responses . | . . . . . . . . . . . . . . . Cargo Convoy Interrupts 1 | . . . . . . . . . . . 1 . . . Stealth | -11 -10 -10 -9 -9 -9 -8 -8 -8 -8 -8 -7 -7 -7 -7 --------- Run | Scr Mat Min Mat Min Exi Min Mat Gar Mat Gar Fac Gar Fac Low Distress Signals 13 | . 2 . . . . . 2 . 6 . 3 . . . Communications Jammed . | . . . . . . . . . . . . . . . Distress Signals . | . . . . . . . . . . . . . . . Times Spotted 352 | . 18 8 16 11 47 11 38 38 46 13 66 11 25 4 Peak Tracking Total 10 | . 4 3 3 3 10 5 4 7 10 4 9 7 3 4 Tactical Retreats 45 | . . 1 . . 17 1 7 3 9 . 4 . 3 . Traps | -11 -10 -10 -9 -9 -9 -8 -8 -8 -8 -8 -7 -7 -7 -7 ------- Run | Scr Mat Min Mat Min Exi Min Mat Gar Mat Gar Fac Gar Fac Low Traps Triggered 21 | . 1 . . . . . 1 10 . . 4 . 5 . Indirectly 4 | . . . . . . . . 4 . . . . . . Trap Hack Attempts . | . . . . . . . . . . . . . . . Triggered . | . . . . . . . . . . . . . . . Disarmed . | . . . . . . . . . . . . . . . Reprogrammed . | . . . . . . . . . . . . . . . Reused . | . . . . . . . . . . . . . . . Traps Extracted . | . . . . . . . . . . . . . . . Installed . | . . . . . . . . . . . . . . . Triggered 2 | . . . . . . . . 1 . . 1 . . . Machines | -11 -10 -10 -9 -9 -9 -8 -8 -8 -8 -8 -7 -7 -7 -7 ---------- Run | Scr Mat Min Mat Min Exi Min Mat Gar Mat Gar Fac Gar Fac Low Machines Disabled 31 | . 1 . . . 8 . 1 5 . 2 9 . 5 . Max in Single Turn 5 | . 1 . . . 2 . 1 1 . 1 3 . 5 . Garrison Access 1 | . . . . . . . . . . . 1 . . . Garrison Relay 5 | . . . . . . . . 3 . 2 . . . . Machines Sabotaged . | . . . . . . . . . . . . . . . Garrisons Compromised . | . . . . . . . . . . . . . . . Overloaded Fab Kills . | . . . . . . . . . . . . . . . Hacking | -11 -10 -10 -9 -9 -9 -8 -8 -8 -8 -8 -7 -7 -7 -7 --------- Run | Scr Mat Min Mat Min Exi Min Mat Gar Mat Gar Fac Gar Fac Low Machines Accessed 72 | . 7 2 4 1 2 . 11 . 8 . 22 . 15 . Terminals 43 | . 5 1 2 . . . 8 . 3 . 13 . 11 . Fabricators 4 | . . . . . . . . . . . 4 . . . Repair Stations 4 | . . . 1 . . . 1 . . . 1 . 1 . Recycling Units 8 | . 2 . 1 . . . 1 . 2 . 1 . 1 . Scanalyzers 4 | . . . . . . . . . 2 . 1 . 1 . Garrison Access 5 | . . . . . . . 1 . 1 . 2 . 1 . Total Hacks 241 | . 34 5 22 1 2 . 34 . 48 . 65 . 30 . Successful 151 | . 20 2 11 1 2 . 24 . 32 . 42 . 17 . Failed 90 | . 14 3 11 . . . 10 . 16 . 23 . 13 . Catastrophic 18 | . 3 2 . . . . 1 . 4 . 6 . 2 . Database Lockouts . | . . . . . . . . . . . . . . . Manual 132 | . 23 4 10 . 1 . 23 . 15 . 33 . 23 . Terminals 153 | . 26 4 11 . . . 28 . 19 . 41 . 24 . Fabricators 9 | . . . . . . . . . . . 9 . . . Repair Stations 12 | . . . 8 . . . 2 . . . 1 . 1 . Recycling Units 25 | . 8 . 3 . . . 3 . 7 . 2 . 2 . Scanalyzers 31 | . . . . . . . . . 21 . 9 . 1 . Garrison Access 7 | . . . . . . . 1 . 1 . 3 . 2 . Terminal Hacks 51 | . 10 2 3 1 2 . 9 . 4 . 13 . 7 . Record 5 | . 2 . 1 . 1 . . . . . 1 . . . Part Schematic 5 | . 1 1 . . . . 1 . . . 2 . . . Robot Analysis 8 | . 5 . 1 . . . . . 1 . 1 . . . Prototype ID Bank 5 | . . . . . . . 2 . 1 . 2 . . . Open Door 2 | . . 1 . 1 . . . . . . . . . . Open DSF 2 | . . . . . . . . . . . 1 . 1 . Branch Access Points 2 | . 1 . . . . . 1 . . . . . . . Terminal Index 6 | . 1 . 1 . . . 1 . 1 . 1 . 1 . Fabricator Index 2 | . . . . . . . . . . . 1 . 1 . Garrison Index 3 | . . . . . . . 1 . . . 1 . 1 . Unreport Threat 2 | . . . . . . . 1 . . . . . 1 . Locate Traps 2 | . . . . . . . 1 . . . 1 . . . Recall Investigation 1 | . . . . . . . 1 . . . . . . . Recall Extermination 1 | . . . . . . . . . . . . . 1 . Recall Assault 1 | . . . . . . . . . . . 1 . . . Registered Prototypes 1 | . . . . . . . . . 1 . . . . . Zone Layout 2 | . . . . . . . . . . . 1 . 1 . EX-Prototype ID Bank 1 | . . . . . 1 . . . . . . . . . Fabricator Hacks 5 | . . . . . . . . . . . 5 . . . Load Schematic 2 | . . . . . . . . . . . 2 . . . Build 3 | . . . . . . . . . . . 3 . . . Repair Station Hacks 8 | . . . 6 . . . 2 . . . . . . . Scan Component 4 | . . . 3 . . . 1 . . . . . . . Repair 4 | . . . 3 . . . 1 . . . . . . . Recycling Unit Hacks 7 | . 2 . . . . . 2 . 2 . 1 . . . Recycle Component 1 | . . . . . . . 1 . . . . . . . Retrieve Components 6 | . 2 . . . . . 1 . 2 . 1 . . . Scanalyzer 25 | . . . . . . . . . 17 . 8 . . . Insert Component 11 | . . . . . . . . . 7 . 4 . . . Analyze 14 | . . . . . . . . . 10 . 4 . . . Garrison Access Hacks 3 | . . . . . . . 1 . 1 . 1 . . . Unlock Access 3 | . . . . . . . 1 . 1 . 1 . . . Unauthorized Hacks 52 | . 8 . 2 . . . 10 . 8 . 14 . 10 . Terminals 41 | . 6 . 2 . . . 9 . 5 . 11 . 8 . Track 1 | . . . . . . . . . 1 . . . . . Assimilate 1 | . . . . . . . . . . . 1 . . . Botnet 34 | . 5 . 1 . . . 8 . 3 . 10 . 7 . Operators 5 | . 1 . 1 . . . 1 . 1 . . . 1 . Fabricators . | . . . . . . . . . . . . . . . Repair Stations . | . . . . . . . . . . . . . . . Recycling Units 8 | . 2 . . . . . 1 . 3 . 1 . 1 . Reject 1 | . . . . . . . . . 1 . . . . . Recyclers 5 | . 1 . . . . . 1 . 1 . 1 . 1 . Mask 1 | . . . . . . . . . 1 . . . . . Tunnel 1 | . 1 . . . . . . . . . . . . . Scanalyzers . | . . . . . . . . . . . . . . . Garrison Access 3 | . . . . . . . . . . . 2 . 1 . Reprogram 1 | . . . . . . . . . . . 1 . . . Watchers 2 | . . . . . . . . . . . 1 . 1 . Data Cores Recovered 1 | . . . . . . . 1 . . . . . . . Used . | . . . . . . . . . . . . . . . Hacking Detections 60 | . 7 1 4 . . . 8 . 6 . 20 . 14 . Full Trace Events 16 | . 1 1 2 . . . 2 . 2 . 5 . 3 . Feedback Events 3 | . . . . . . . 2 . . . 1 . . . Corruption 1 | . . . . . . . 1 . . . . . . . Hackware Fried 2 | . . . . . . . 1 . . . 1 . . . Feedback Blocked . | . . . . . . . . . . . . . . . Robot Schematics Acquired . | . . . . . . . . . . . . . . . Robots Built . | . . . . . . . . . . . . . . . Authchips . | . . . . . . . . . . . . . . . Time . | . . . . . . . . . . . . . . . Total Robot Build Rating . | . . . . . . . . . . . . . . . Part Schematics Acquired 14 | . 1 1 . . . . 1 . 6 . 5 . . . Parts Built 6 | . . . . . . . . . . . 6 . . . Authchips . | . . . . . . . . . . . . . . . Time 175 | . . . . . . . . . . . 175 . . . Total Part Build Rating 42 | . . . . . . . . . . . 42 . . . Parts Repaired 4 | . . . 3 . . . 1 . . . . . . . Time 183 | . . . 115 . . . 68 . . . . . . . Parts Recycled 1 | . . . . . . . 1 . . . . . . . Recycled Matter . | . . . . . . . . . . . . . . . Retrieved Matter . | . . . . . . . . . . . . . . . Retrieved Components 31 | . 12 . . . . . 9 . 4 . 6 . . . Parts Scanalyzed 9 | . . . . . . . . . 6 . 3 . . . Part Schematics Acquired 9 | . . . . . . . . . 6 . 3 . . . Parts Damaged . | . . . . . . . . . . . . . . . Bothacking | -11 -10 -10 -9 -9 -9 -8 -8 -8 -8 -8 -7 -7 -7 -7 ------------ Run | Scr Mat Min Mat Min Exi Min Mat Gar Mat Gar Fac Gar Fac Low Used RIF Installer 2 | . . . . . . . . 1 . . . 1 . . Threat Obfuscator 1 | . . . . . . . . . . . . 1 . . Robots Hacked 6 | . . . . . 3 . . . . . 3 . . . Non-combat 2 | . . . . . 2 . . . . . . . . . Combat 4 | . . . . . 1 . . . . . 3 . . . Robot Hacks Applied 6 | . . . . . 3 . . . . . 3 . . . parse_system 3 | . . . . . 3 . . . . . . . . . overload_power 1 | . . . . . . . . . . . 1 . . . formatsys_high 2 | . . . . . . . . . . . 2 . . . Relay Couplers Released 23 | . . . . . . . . 13 . 8 2 . . . Machine Destruction 23 | . . . . . . . . 13 . 8 2 . . . Attached 3 | . . . . . . . . 1 . . 2 . . . Fabnet Peak Effective % . | . . . . . . . . . . . . . . . Robots Rewired 9 | . . . . . . . . 9 . . . . . . Allies Hacked 1 | . . . . . . . . . . . 1 . . . Hacks Repelled . | . . . . . . . . . . . . . . . Allies | -11 -10 -10 -9 -9 -9 -8 -8 -8 -8 -8 -7 -7 -7 -7 -------- Run | Scr Mat Min Mat Min Exi Min Mat Gar Mat Gar Fac Gar Fac Low Total Allies 18 | . . 1 . . . . . 9 . . 8 . . . Largest Group 9 | . . 1 1 . . . . 9 . . 3 . . . Highest-Rated Group 207 | . . 31 31 . . . . 207 . . 78 . . . Highest-Rated Ally 40 | . . 31 31 . . . . 40 . . 31 . . . Total Orders 1 | . . . . 1 . . . . . . . . . . RETURN 1 | . . . . 1 . . . . . . . . . . Ally Attacks 116 | . . . 24 . . . . 49 . . 43 . . . Total Damage 1994 | . . . 344 . . . . 1156 . . 494 . . . Kills 29 | . . . 6 . . . . 19 . . 4 . . . Allies Corrupted . | . . . . . . . . . . . . . . . Allies Melted . | . . . . . . . . . . . . . . . Intel | -11 -10 -10 -9 -9 -9 -8 -8 -8 -8 -8 -7 -7 -7 -7 ------- Run | Scr Mat Min Mat Min Exi Min Mat Gar Mat Gar Fac Gar Fac Low Robot Analysis Total 8 | . 5 . 1 . . . . . 1 . 1 . . . Derelict Logs Recovered 1 | . . 1 . . . . . . . . . . . . Drone Launches 6 | . . . . 6 . . . . . . . . . . Drone Recoveries 4 | . . . . 4 . . . . . . . . . . Exploration | -11 -10 -10 -9 -9 -9 -8 -8 -8 -8 -8 -7 -7 -7 -7 ------------- Run | Scr Mat Min Mat Min Exi Min Mat Gar Mat Gar Fac Gar Fac Low Turns Passed 18700 | 89 794 987 646 709 2650 678 1707 3009 1785 704 2737 325 1833 47 Spaces Moved 8040 | 40 393 558 248 341 1080 270 598 1104 644 247 1369 163 958 27 Core 2 | 2 . . . . . . . . . . . . . . Treads 7929 | 38 393 558 248 341 1080 270 598 1104 644 247 1369 163 876 . Legs . | . . . . . . . . . . . . . . . Wheels . | . . . . . . . . . . . . . . . Hover 109 | . . . . . . . . . . . . . 82 27 Flight . | . . . . . . . . . . . . . . . Fastest Speed 50 | 50 160 160 160 170 170 250 232 245 245 250 158 162 142 142 Average Speed 200 | 154 160 160 169 194 202 250 242 245 249 250 164 175 170 142 Slowest Speed 330 | 160 160 160 170 250 250 250 330 245 250 250 250 180 320 142 Overloaded Moves . | . . . . . . . . . . . . . . . Propulsion Burnouts . | . . . . . . . . . . . . . . . Robots Hopped . | . . . . . . . . . . . . . . . Cave-ins Triggered . | . . . . . . . . . . . . . . . Exploration Rate (%) 52 | 3 69 99 25 69 91 72 69 78 45 51 43 28 33 7 Regions Visited 14 Branch Regions 5 Pre-discovered Areas 3 | . 1 1 . . 1 . . . . . . . . . Known Exits Taken 10 | . 1 1 1 1 1 1 1 . 1 . 1 . 1 . Unknown Exits Taken 1 | 1 . . . . . . . . . . . . . . Scrap Searched 5 | . . 3 . 1 . 1 . . . . . . . . Spaces Dug 96 | . . . . . . . 18 6 11 . 42 . 18 1 Terrain Destroyed 370 | . 11 . . 26 17 . 18 12 11 59 94 55 66 1 Melee 90 | . . . . . . . 18 2 11 . 40 . 18 1 Projectile 2 | . . . . . . . . . . . 2 . . . AOE 278 | . 11 . . 26 17 . . 10 . 59 52 55 48 . Terrain Rammed . | . . . . . . . . . . . . . . . Walls Destroyed . | . . . . . . . . . . . . . . . Machines Disabled . | . . . . . . . . . . . . . . . Actions | -11 -10 -10 -9 -9 -9 -8 -8 -8 -8 -8 -7 -7 -7 -7 --------- Run | Scr Mat Min Mat Min Exi Min Mat Gar Mat Gar Fac Gar Fac Low Total 9851 | 54 487 607 427 368 1361 274 790 1350 782 307 1740 185 1087 32 Wait 569 | . 9 18 124 4 88 5 59 32 41 22 137 . 30 . Move 8029 | 39 392 557 247 340 1079 269 598 1103 644 246 1369 162 957 27 Hop . | . . . . . . . . . . . . . . . Pick Up 106 | 3 17 1 10 7 37 . 5 8 4 1 10 1 2 . Fast Attach 67 | 6 1 . 3 . 5 . 6 5 7 2 17 3 12 . Attach 43 | . 1 1 3 . 9 . 5 5 1 1 11 1 4 1 Detach 17 | . . . . . 1 . 4 2 1 . 6 1 2 . Swap 84 | . 8 1 2 3 9 . 15 12 4 3 18 2 6 1 Drop 122 | . 15 3 10 3 24 . 12 13 11 . 22 . 9 . Fire 342 | 6 44 26 28 11 97 . 2 50 7 14 35 12 8 2 Melee 384 | . . . . . 12 . 83 33 62 18 115 3 57 1 Ram . | . . . . . . . . . . . . . . . Kick . | . . . . . . . . . . . . . . . Crush 2 | . . . . . . . 1 1 . . . . . . Escape Stasis 10 | . . . . . . . . 10 . . . . . . Rewire 76 | . . . . . . . . 76 . . . . . . Trap . | . . . . . . . . . . . . . . . Miscellaneous . | . . . . . . . . . . . . . . . Route ------- -11/Scrapyard -10/Materials (discovered 3 exits: *Mat x2 / *Min) -10/Mines (discovered 2 exits: *Mat x2) -9/Materials (discovered 2 exits: *Min x2) -9/Mines (discovered 2 exits: *Mat / *Exi) -9/Exiles (discovered 2 exits: *Min x2) -8/Mines -8/Materials (discovered 3 exits: *Fac x2 / Gar) -8/Garrison (discovered 3 exits: *Mat x3) -8/Materials (discovered 2 exits: *Fac / Gar) -8/Garrison -7/Factory (discovered 2 exits: *Low / Gar) -7/Garrison -7/Factory (discovered 2 exits: *Fac / *Low) -7/Lower Caves History --------- Turn | Location | Event 8 | -11/Scrapyard | Discovered new exit (range 15) 90 | -11/Scrapyard | Entered Materials 140 | -10/Materials | Identified exit to Mines 300 | -10/Materials | Build established: Mutant 460 | -10/Materials | Discovered new exit (range 11) 599 | -10/Materials | Discovered new exit (range 15) 884 | -10/Materials | Entered Mines 896 | -10/Mines | Discovered new exit (range 12) 973 | -10/Mines | Met a Derelict bent on vengeance 1005 | -10/Mines | Learned location of Zion (-7) 1025 | -10/Mines | Found the Drone Emporium 1034 | -10/Mines | Found Prototype Device 1131 | -10/Mines | Build established: Scavenger-Mutant 1214 | -10/Mines | A weapon hastily lodged in a ceiling crevice suddenly fell to the ground 1746 | -10/Mines | Core integrity fell below 50% 1755 | -10/Mines | Discovered new exit (range 8) 1761 | -10/Mines | Escorted by a lone wolf Derelict 1867 | -10/Mines | Identified exit to Materials 1871 | -10/Mines | Entered Materials 1871 | -9/Materials | Accompanied by 1 ally 1871 | -9/Materials | Evolved 2 slots: Utility x2 1871 | -9/Materials | Identified Decoy Drone Bay 2047 | -9/Materials | Discovered new exit (range 12) 2159 | -9/Materials | Identified exit to Mines 2168 | -9/Materials | Build established: Mutant 2349 | -9/Materials | Discovered exit to Mines (range 13) 2404 | -9/Materials | Repaired Lgt. Nuclear Core 2432 | -9/Materials | Repaired Assault Rifle 2484 | -9/Materials | Repaired Imp. Assault Rifle 2517 | -9/Materials | Entered Mines 2518 | -9/Mines | Assembled infested the area 2523 | -9/Mines | Assisted by a Guerilla fighting off Assembled 2606 | -9/Mines | Received a Rocket Launcher from a helpful Derelict 2650 | -9/Mines | Discovered new exit (range 45) 2864 | -9/Mines | Met a Derelict shopkeep closing up shop 3218 | -9/Mines | Deemed a non-threat by the Exiles lab entrance 3218 | -9/Mines | Discovered new exit (range 6) 3224 | -9/Mines | Identified exit to Exiles 3226 | -9/Mines | Entered Exiles 3257 | -9/Exiles | Lost 3 parts (1p1u1w) 3259 | -9/Exiles | Discovered new exit (range 15) 3279 | -9/Exiles | Identified exit to Mines 3317 | -9/Exiles | Met 8R-AWN 3345 | -9/Exiles | Met EX-HEX 3421 | -9/Exiles | Met EX-DEC 3453 | -9/Exiles | Met EX-BIN 3613 | -9/Exiles | Discovered exit to Mines (range 10) 3854 | -9/Exiles | Aligned with FarCom system 3856 | -9/Exiles | Given EX-Vault access code 3909 | -9/Exiles | Opened EX-Vault 3920 | -9/Exiles | Found Longsword +1 3926 | -9/Exiles | Found Firepult 3935 | -9/Exiles | Found Modified TNC 3986 | -9/Exiles | Warned to stay clear of 0b10 Research branches 4575 | -9/Exiles | Attacked by the Exiles 4637 | -9/Exiles | Destroyed 7 combat bots 4720 | -9/Exiles | Core integrity fell below 50% 4739 | -9/Exiles | Lost 4 parts (2n2w) 4788 | -9/Exiles | Destroyed 8R-AWN 4797 | -9/Exiles | Found AS-neutralizer No. 17b 5113 | -9/Exiles | Destroyed EX-BIN 5160 | -9/Exiles | Destroyed EX-HEX 5203 | -9/Exiles | Destroyed EX-DEC 5236 | -9/Exiles | Found Prototype Processor 5313 | -9/Exiles | Found System Purifier 5520 | -9/Exiles | Identified Exp. Core Analyzer 5528 | -9/Exiles | Found Prototype Energy Gun 5534 | -9/Exiles | Identified AWS/EX-DEC 5876 | -9/Exiles | Stole two prototypes: Modified TNC, Longsword +1 5876 | -9/Exiles | Entered Mines 6169 | -8/Mines | Build established: Scavenger-Mutant 6544 | -8/Mines | Discovered new exit (range 4) 6551 | -8/Mines | Identified exit to Materials 6554 | -8/Mines | Entered Materials 6554 | -8/Materials | Evolved 2 slots: Utility x2 6996 | -8/Materials | EX Chip 2 fried by hacking feedback 7055 | -8/Materials | Discovered new exit (range 15) 7086 | -8/Materials | Identified exit to Factory 7721 | -8/Materials | Discovered exit to Factory (range 11) 7764 | -8/Materials | Build established: Mutant 8049 | -8/Materials | Repaired Adv. Weapon Cycler? 8261 | -8/Materials | Identified exit to Garrison 8261 | -8/Materials | Entered Garrison 8266 | -8/Garrison | Triggered checkpoint 8266 | -8/Garrison | Triggered checkpoint 8474 | -8/Garrison | Triggered checkpoint 8479 | -8/Garrison | Triggered checkpoint 8568 | -8/Garrison | Triggered checkpoint 9070 | -8/Garrison | Triggered checkpoint 9091 | -8/Garrison | Triggered checkpoint 9224 | -8/Garrison | Discovered new exit (range 10) 9270 | -8/Garrison | Identified exit to Materials 9415 | -8/Garrison | Discovered exit to Materials (range 9) 9436 | -8/Garrison | Triggered checkpoint 9832 | -8/Garrison | Triggered checkpoint 10000 | -8/Garrison | Build established: Scavenger-Mutant 10030 | -8/Garrison | Discovered exit to Materials (range 8) 10275 | -8/Garrison | Triggered checkpoint 10684 | -8/Garrison | Installed Relay Interface Framework 10753 | -8/Garrison | Garrison Relay disabled 11005 | -8/Garrison | Garrison Relay disabled 11212 | -8/Garrison | Garrison Relay disabled 11270 | -8/Garrison | Entered Materials 11316 | -8/Materials | Build established: Mutant 12470 | -8/Materials | First assault squad dispatched 12774 | -8/Materials | Discovered exit to Factory (range 16) 13050 | -8/Materials | Core integrity fell below 50% 13055 | -8/Materials | Identified exit to Garrison 13055 | -8/Materials | Entered Garrison 13160 | -8/Garrison | Triggered checkpoint 13213 | -8/Garrison | Garrison Relay disabled 13546 | -8/Garrison | Triggered checkpoint 13705 | -8/Garrison | Garrison Relay disabled 13741 | -8/Garrison | Discovered exit to Factory (range 8) 13759 | -8/Garrison | Entered Factory 13759 | -7/Factory | Evolved 2 slots: Propulsion x1, Utility x1 14570 | -7/Factory | Discovered new exit (range 8) 14579 | -7/Factory | Fabricated Cmb. Antigrav System? 14581 | -7/Factory | Identified exit to Lower Caves 14959 | -7/Factory | First assault squad dispatched 15052 | -7/Factory | Allied Derelicts emerged from ambush trap array 15305 | -7/Factory | Cargo convoy interrupted 15388 | -7/Factory | P-60 Hacker assimilated allied Administrator 4a 15704 | -7/Factory | Build established: Hacker-Mutant 15910 | -7/Factory | Hacking Suite fried by hacking feedback 15963 | -7/Factory | Fabricated Hvy. Phase Cannon (x2) 16236 | -7/Factory | Fabricated Hvy. Siege Treads (x2) 16317 | -7/Factory | Destroyed 12 combat bots 16496 | -7/Factory | Identified exit to Garrison 16496 | -7/Factory | Entered Garrison 16505 | -7/Garrison | Expanded RIF knowledge: Threat Obfuscation 16523 | -7/Garrison | Build established: Mutant 16568 | -7/Garrison | Core integrity fell below 50% 16571 | -7/Garrison | Triggered checkpoint 16602 | -7/Garrison | Core integrity fell below 20% 16625 | -7/Garrison | Destroyed 9 combat bots 16634 | -7/Garrison | Lost 4 parts (1p2n1u) 16798 | -7/Garrison | Discovered new exit (range 14) 16819 | -7/Garrison | Identified exit to Factory 16821 | -7/Garrison | Entered Factory 16929 | -7/Factory | Build established: Scavenger-Mutant 17519 | -7/Factory | Discovered new exit (range 14) 17621 | -7/Factory | Identified exit to Factory 18549 | -7/Factory | Lost 3 parts (1p1n1u) 18586 | -7/Factory | Discovered exit to Lower Caves (range 7) 18606 | -7/Factory | Build established: Mutant 18654 | -7/Factory | Entered Lower Caves 18701 | -7/Lower Caves | Destroyed by S-27 Virus with Autogun Last Messages --------------- 18526_ Dropped Lgt. Treads. 18528_ Acquired 30 matter. 18535_ R-06 Scavenger collects Autogun. 18539_ R-06 Scavenger collects Corrupted VTOL Module. 18542_ R-06 Scavenger collects VTOL Module. 18557_ Connecting with Terminal... >>Index(Fabricators) Found 6 fabricators. Downloaded coordinate data. >>Layout(Zone) Retrieving Zone 9A layout... Downloaded map data. 18571_ ALERT: Rogue bot located, Programmers report to Factory Zone 7C. 18586_ EXIT=FOUND: LOWER CAVES 18625_ Connecting with Fabricator... LOCATION=LOWER CAVES GOAL=ESCAPE 18655_ IF-V5K(k) breaks down the debris. 18699_ Imp. Light Armor Plating destroyed. 18700_ S-27 Virus destroyed. Map ----- +----------------------------------------------------+ | ?????????????????????????????????????????????????? | | ?????????????????????????????????????????????????? | | ?????????????????????????????????????????????????? | | ?????????????????????????????????????????????????? | | ?????????????????????????????????????????????????? | | ?????????????????????????????????????????????????? | | ??????????????????????????????????????######?????? | | ?????????????????????????????????????## ##????? | | ???????????????????????????????####### #????? | | ???????????????????????????????# #????? | | ???????????????????????????????# ### ##????? | | ???????????????????????????????# #?# #?????? | | ???????????????????????????????# #?#### #?????? | | ???????????????????????????????# #????# ##?????? | | ???????????????????????????????# #????# #??????? | | ???????????????????????????????# #????# #??????? | | ?????????????????????????????### #????# #??????? | | ????????????????????##??????## #???? ??????? | | ????????????????????# ??????# ##???? ??????? | | ????????????????????# "?????# ##????? #?????? | | ????????????????????#" "????# #????# ##?????? | | ?????????????????????# ??## ### ##??????? | | ?????????????????????? ### #????????? | | ???????????????????????? # ## #?????????? | | ??????????????????????#### ####?????????????? | | ??????????????????????#"#@ ###????????????????? | | ???????????????????????# #??????????????????? | | ??????????????????????# #??????????????????? | | ??????????????????????# =%[ ???????????????? | | ?????????????????????? ### s%== ???????????? | | ????????????????????? #?## =%[ ??????????? | | ????????????????????# #??######### ???????????? | | ???????????????????? #???????????????????????? | | ??????????????????? ???????????????????????? | | ?????????????????? ???????????????????????? | | ?????????????????? ???????????????????????? | | ????????????????? ???????????????????????? | | ???????????????? #???????????????????????? | | ???????????????? #????????????????????????? | | ????????????????? #?????????????????????????? | | ???????????????????? #??????????????????????????? | | ?????????????????????????????????????????????????? | | ?????????????????????????????????????????????????? | | ?????????????????????????????????????????????????? | | ?????????????????????????????????????????????????? | | ?????????????????????????????????????????????????? | | ?????????????????????????????????????????????????? | | ?????????????????????????????????????????????????? | | ?????????????????????????????????????????????????? | | ?????????????????????????????????????????????????? | +----------------------------------------------------+ Best States ------------- Heat Dissipation 61 Energy Generation 16 Energy Capacity 290 Matter Stores 300 Matter Capacity 300 Sight Range 16 Robot Scan Range 15 Terrain Scan Range 16 Terrain Scan Density 10 Armor Coverage 450 Weapon Cycling 25 Melee Speed Boost 20 Evasion (%) 40 Melee Accuracy 5 Armor Integrity Analysis 30 Recoil Reduction 3 Salvage Targeting 4 Offensive Hacking 20 Defensive Hacking 10 Relay Coupler Types 2 Relay Coupler Value 47 Item Schematics ----------------- Hcp. Storage Unit | -10/Materials | Hacked Lrg. Storage Unit | -10/Mines | Hacked Hacking Suite | -8/Materials | Hacked Cmb. Antigrav System | -8/Materials | Scanalyzed Gravity Neutralizer | -8/Materials | Scanalyzed System Purifier | -8/Materials | Scanalyzed Mak. Power Source | -8/Materials | Scanalyzed Exp. Core Analyzer | -8/Materials | Scanalyzed Adv. Component Analysis Suite | -8/Materials | Scanalyzed Remote Datajack | -7/Factory | Scanalyzed Hyp. Gauss Rifle | -7/Factory | Scanalyzed Adv. Weapon Cycler | -7/Factory | Scanalyzed Mic. Nuclear Core | -7/Factory | Hacked Hvy. Phase Cannon | -7/Factory | Hacked Robot Schematics ------------------ None Fabricated ------------ Cmb. Antigrav System | x2 | -7/Factory Hvy. Phase Cannon | x2 | -7/Factory Hvy. Siege Treads | x2 | -7/Factory | Preloaded Alien Tech Used ----------------- None Achievements -------------- None Challenges ------------ None Game ------ Seed FactoryLargeBlaster Manual? 0 Play Time 02:17:10 Cumulative 469.1 hours Start 2022.03.21 @ 08:11:04 End 2022.03.22 @ 14:20:51 Sessions 5 Manual Loads 0 Difficulty Rogue Special Mode None Game No. 379 Rogue 379 Adventurer 0 Explorer 0 Win Type - Total 3 Types 2/0/0/1/0/0/0/0/0 Lore% 68 Gallery% 77 Achievement% 66 Wizard Run 0 Options --------- ASCII 0 Keyboard 1 Movement Numpad Keybinds 0 Fullscreen 1 Font 12/Terminus Map View 83x54 Tactical HUD 1 Map Filters NONE Filters NONE Steam 1 RUN: 5e180cb9-5c95-4f5e-be64-9a4db467c5eb